Cogmind - Beta 12 X4 --- EXPLORER MODE // 2022.11.12 @ 19:32:02 Player: Sardaukar Result: Escaped! Performance ------------- Evolutions (9) 4500 Regions Visited (18) 3600 Robots Destroyed (180) 900 Value Destroyed (6198) 6198 Prototype IDs (51) 1020 Alien Tech Used (0) 0 Bonus (4516) 4516 TOTAL SCORE: 20734 Bonus ------- High Alert Combat Kills 40 Follower Combat Kills 793 Entered DSFs 500 Met Data Miner 300 Win 3000 Friendly Fire -117 Cogmind --------- Core Integrity 46/1600 Matter 112/300 Energy 99/100 System Corruption 7% Temperature Cool (0) Movement Core (50) Location To Epsilon Eridani Parts ------- > --- POWER (2) -------- (None) > --- PROPULSION (7) --- (None) > --- UTILITY (15) ----- Advanced Signal Interpreter > --- WEAPON (2) ------- (None) > --- INVENTORY (5) ---- Cooled Nuclear Pulse Thruster Advanced Cryofiber Web Advanced Reaction Control System Cloaking Device Mini Grenade Launcher Peak State ------------ > --- POWER ------------ Light Particle Reactor Light Quantum Reactor > --- PROPULSION ------- Experimental Cesium-ion Thruster Cooled Field Propulsion Drive Field Propulsion Array Field Propulsion Array Experimental Q-thruster > --- UTILITY ---------- Advanced Coolant Injector Medium Storage Unit Advanced Sensor Array Advanced Signal Interpreter ECM Suite Advanced Reaction Control System Cloaking Device Experimental Propulsion Shielding Experimental Utility Shielding Light Regenerative Plating Graphene Brace Advanced Hacking Suite Advanced Hacking Suite Advanced Hacking Suite Advanced System Shield > --- WEAPON ----------- Enhanced Quantum Rifle Enhanced Quantum Rifle > --- INVENTORY -------- Cooled Nuclear Pulse Thruster Cooled Nuclear Pulse Thruster Experimental Cesium-ion Thruster Advanced Cryofiber Web Advanced System Restoration Module Mini Grenade Launcher Shock Maul [Rating: 172] Favorites ----------- Power Cooled Ion Engine Engine Cooled Ion Engine Power Core Light Fission Core Reactor Light Particle Reactor Propulsion Carbon-fiber Leg Leg Carbon-fiber Leg Hover Unit Improved Airjet Flight Unit Improved Flight Unit Utility Advanced Hacking Suite Device Improved Sensor Array Storage Medium Storage Unit Processor Advanced Signal Interpreter Hackware Advanced Hacking Suite Protection Light Regenerative Plating Weapon Improved Medium Laser Energy Gun Improved Medium Laser Energy Cannon Advanced Beam Cannon Ballistic Gun Improved KE Penetrator Ballistic Cannon Mini Assault Cannon Launcher Mini Grenade Launcher Impact Weapon Shock Maul Slashing Weapon Axe Build | -11 -10 -9 -9 -8 -7 -7 -7 -7 -6 -6 -6 -6 -5 -4 -3 -3 -2 -1 ------- Run | Scr Mat Mat Sto Mat Fac Low Low Dat Pro Fac Ext Cet Fac Fac Res DSF Res Acc Slots Evolved 19 | . 1 2 . 2 2 . . . . 2 . . 2 2 2 . 2 2 Power 1 | . . . . . 1 . . . . . . . . . . . . . Propulsion 5 | . . 2 . 1 1 . . . . . . . . 1 . . . . Utility 13 | . 1 . . 1 . . . . . 2 . . 2 1 2 . 2 2 Weapon . | . . . . . . . . . . . . . . . . . . . Parts Attached 297 | 7 12 6 32 29 22 1 2 . . 38 18 5 41 20 3 10 20 31 Power 37 | 1 1 2 2 . 2 . . . . 4 2 . 8 3 . . 1 11 Engine 12 | 1 1 2 2 . 2 . . . . 2 1 . 1 . . . . . Core 17 | . . . . . . . . . . 2 1 . 7 3 . . 1 3 Reactor 8 | . . . . . . . . . . . . . . . . . . 8 Propulsion 64 | 2 2 3 7 9 6 . . . . 14 1 . 7 5 . 1 6 1 Treads . | . . . . . . . . . . . . . . . . . . . Leg 28 | 2 2 3 7 8 3 . . . . 3 . . . . . . . . Wheel . | . . . . . . . . . . . . . . . . . . . Hover 2 | . . . . . 2 . . . . . . . . . . . . . Flight 34 | . . . . 1 1 . . . . 11 1 . 7 5 . 1 6 1 Utility 120 | 2 5 1 11 16 8 1 . . . 14 8 2 18 8 3 5 8 10 Device 58 | 1 3 1 7 7 5 . . . . 5 3 1 8 2 2 1 4 8 Storage 5 | . 1 . . 1 . . . . . 1 . . 2 . . . . . Processor 7 | . 1 . . 2 . . . . . 1 1 . . 2 . . . . Hackware 8 | . . . . . 1 . . . . 2 . . 4 . . . 1 . Protection 42 | 1 . . 4 6 2 1 . . . 5 4 1 4 4 1 4 3 2 Artifact . | . . . . . . . . . . . . . . . . . . . Weapon 76 | 2 4 . 12 4 6 . 2 . . 6 7 3 8 4 . 4 5 9 Energy Gun 22 | 2 4 . 6 4 1 . 1 . . . . . . 1 . . . 3 Energy Cannon 1 | . . . 1 . . . . . . . . . . . . . . . Ballistic Gun 10 | . . . . . . . . . . 1 2 2 2 1 . 2 . . Ballistic Cannon 6 | . . . 4 . 2 . . . . . . . . . . . . . Launcher 12 | . . . 1 . 1 . 1 . . . 2 . 2 . . . 3 2 Special Weapon . | . . . . . . . . . . . . . . . . . . . Impact Weapon 24 | . . . . . 1 . . . . 5 3 1 4 2 . 2 2 4 Slashing Weapon 1 | . . . . . 1 . . . . . . . . . . . . . Piercing Weapon . | . . . . . . . . . . . . . . . . . . . Special Melee Weapon . | . . . . . . . . . . . . . . . . . . . Unidentified Prototypes 20 | . . . 5 2 1 . . . . 4 . . 2 3 . . 2 1 Parts Lost 35 | . . 1 . 2 1 . . . . 1 . . 5 2 . 1 1 21 Power 6 | . . 1 . . . . . . . . . . 1 1 . . 1 2 Propulsion 7 | . . . . . 1 . . . . . . . . . . 1 . 5 Utility 21 | . . . . 2 . . . . . . . . 4 1 . . . 14 Weapon 1 | . . . . . . . . . . 1 . . . . . . . . Highest Loss Streak 19 | . . 1 . 2 1 . . . . 1 . . 2 1 . 1 1 19 To Critical Strikes . | . . . . . . . . . . . . . . . . . . . Average Slot Usage (%) 95 | . 98 97 98 98 98 100 100 100 100 93 94 100 92 93 95 95 89 77 Engine 6 | . 11 9 10 8 13 14 14 14 14 5 . . . . . . . . Core 2 | . . . . . . . . . . 2 7 12 9 9 9 9 7 1 Leg 21 | . 24 37 39 40 38 35 35 35 35 10 . . . . . . . . Flight 12 | . . . . . 2 7 7 7 7 26 37 37 30 29 27 27 20 17 Device 9 | . 17 10 8 9 7 . . . . 6 5 . 7 8 13 13 14 18 Storage 7 | . 12 10 10 8 7 7 7 7 7 5 6 6 5 5 4 4 4 2 Processor 6 | . 2 10 10 6 7 7 7 7 7 6 6 6 4 4 4 4 4 3 Hackware 7 | . . . . . 5 7 7 7 7 10 12 12 16 15 13 13 15 14 Protection 5 | . 4 . . 7 1 7 7 7 7 7 6 12 6 9 13 13 13 8 Energy Gun 8 | . 23 20 15 15 11 7 7 14 14 1 . . . . . . . . Impact Weapon 3 | . . . . . . 7 6 . . 9 9 8 7 8 9 3 7 2 Naked Turns . | . . . . . . . . . . . . . . . . . . . Heaviest Build 66 | 7 19 20 29 31 42 36 37 37 37 40 34 34 37 42 41 47 48 66 Greatest Support 92 | 20 20 43 49 77 92 77 77 77 77 77 35 35 49 59 44 61 58 55 Greatest Overweight (x) 5 | 2 5 . . . . . . . . 1 . . 1 . . . . 1 Average Overweight (x) . | . . . . . . . . . . . . . . . . . . . Largest Inventory Capacity 10 | 5 10 10 10 10 10 10 10 10 10 10 10 10 10 10 10 10 10 10 Average Capacity 9 | 5 10 10 10 10 10 10 10 10 10 9 10 10 10 10 10 10 10 9 Most Carried 10 | 1 9 10 10 10 10 9 10 10 10 10 10 9 10 10 10 10 10 10 Average Carried 8 | . 6 7 9 9 9 8 9 10 10 8 9 9 7 9 8 9 9 8 Final Capacity 10 | 5 10 10 10 10 10 10 10 10 10 10 10 10 10 10 10 10 10 5 Final Carried 10 | 1 9 7 10 10 9 8 10 10 10 10 9 9 9 10 8 10 10 5 Class Distribution -------------------- 58% | Hacker-Mutant 19% | Wizard-Sprinter 19% | Hacker-Sprinter Dominant Class ---------------- Hacker-Mutant | -10/Materials Hacker-Mutant | -9/Materials Hacker-Mutant | -9/Storage Hacker-Mutant | -8/Materials Hacker-Mutant | -7/Factory Hacker-Mutant | -7/Lower Caves Hacker-Mutant | -7/Lower Caves Hacker-Mutant | -7/Data Miner Hacker-Mutant | -6/Proximity Caves Hacker-Sprinter | -6/Factory Hacker-Sprinter | -6/Extension Hacker-Sprinter | -6/Cetus Hacker-Sprinter | -5/Factory Wizard-Sprinter | -4/Factory Wizard-Sprinter | -3/Research Wizard-Sprinter | -3/DSF Wizard-Sprinter | -2/Research Wizard-Sprinter | -1/Access Resources | -11 -10 -9 -9 -8 -7 -7 -7 -7 -6 -6 -6 -6 -5 -4 -3 -3 -2 -1 ----------- Run | Scr Mat Mat Sto Mat Fac Low Low Dat Pro Fac Ext Cet Fac Fac Res DSF Res Acc Matter Collected 3600 | 215 147 88 538 260 318 10 40 . . 332 283 . 479 371 . 69 313 137 Remotely . | . . . . . . . . . . . . . . . . . . . Salvage Created 7621 | . 577 654 905 816 1141 . 111 . 64 716 359 . 899 706 . 56 283 334 Parts 304 | . 30 47 45 52 25 . 5 . . 26 7 . 36 8 . 5 10 8 Haulers Intercepted 23 | . 2 4 4 4 4 . . . . . . . 2 . . . 2 1 Recyclers Shooed 2 | . . 1 . . 1 . . . . . . . . . . . . . Parts Field Recycled . | . . . . . . . . . . . . . . . . . . . Retrieved Matter . | . . . . . . . . . . . . . . . . . . . Parts Self-Destructed . | . . . . . . . . . . . . . . . . . . . Prevented . | . . . . . . . . . . . . . . . . . . . Kills | -11 -10 -9 -9 -8 -7 -7 -7 -7 -6 -6 -6 -6 -5 -4 -3 -3 -2 -1 ------- Run | Scr Mat Mat Sto Mat Fac Low Low Dat Pro Fac Ext Cet Fac Fac Res DSF Res Acc Combat Hostiles Destroyed 102 | . 9 10 15 11 11 . 3 . 1 10 3 . 11 5 . 2 4 7 Melee 11 | . . . . . . . . . . 4 2 . 3 2 . . . . Guns 52 | . 8 10 9 11 9 . 1 . . . . . . . . 2 . 2 Cannons 5 | . . . 5 . . . . . . . . . . . . . . . AOE 18 | . . . . . . . 2 . . 2 . . 5 . . . 4 5 Classes Destroyed 16 | . 6 2 . . 2 . 1 . . 2 1 . 1 . . 1 . . Worker 8 | . . 3 1 1 . . . . . . . . 2 1 . . . . Builder 1 | . . . . . . . . . . 1 . . . . . . . . Tunneler 1 | . 1 . . . . . . . . . . . . . . . . . Hauler 23 | . 2 4 4 4 4 . . . . . . . 2 . . . 2 1 Recycler 9 | . 1 . . . 5 . . . . 1 1 . . 1 . . . . Mechanic 1 | . . . . . . . . . . . . . 1 . . . . . Operator 3 | . . . . . . . . . . . 2 . 1 . . . . . Watcher 31 | . 3 3 1 3 . . . . . 3 3 . 4 8 . . 2 1 Swarmer 19 | . 2 3 . 2 2 . . . . . 1 . . . . . 4 5 Cutter 2 | . . . . . . . . . . . . . . . . 2 . . Grunt 29 | . 7 2 7 5 1 . 2 . . 1 . . 2 2 . . . . Brawler 1 | . . . . . . . 1 . . . . . . . . . . . Duelist 1 | . . . . . . . . . . 1 . . . . . . . . Sentry 28 | . . 5 9 4 3 . . . 1 2 2 . 2 . . . . . Hunter 6 | . . . . . 1 . . . . 4 . . 1 . . . . . Programmer 17 | . . . . . 4 . . . . 2 . . 6 3 . . . 2 Best Kill Streak 7 | . 3 4 5 4 3 . 3 . 1 7 3 . 4 3 . 2 4 7 Combat Bots Only 6 | . 3 3 3 3 3 . 3 . 1 6 2 . 4 2 . 2 4 5 Max Kills in Single Turn 3 | . 1 1 1 2 1 . 1 . 1 3 1 . 2 1 . 1 2 3 Gunslinging 1 | . . . . 1 . . . . . . . . . . . . . . Exploded 3 | . . . . . . . 1 . . 2 . . 2 . . . 2 3 Melee 1 | . . . . . . . . . . 1 1 . 1 1 . . . . Uniques/NPCs Destroyed . | . . . . . . . . . . . . . . . . . . . Combat | -11 -10 -9 -9 -8 -7 -7 -7 -7 -6 -6 -6 -6 -5 -4 -3 -3 -2 -1 -------- Run | Scr Mat Mat Sto Mat Fac Low Low Dat Pro Fac Ext Cet Fac Fac Res DSF Res Acc Damage Taken 8743 | . 79 371 402 298 708 . 39 . 112 579 161 86 1192 429 . 141 571 3575 Core 2245 | . 32 56 63 4 67 . . . 13 151 32 . 158 51 . . 64 1554 Absorbed by Shields 59 | . . . 6 . . . . . . . 43 . . . . . 10 . Redirected to Shielding 638 | . 2 . 11 48 . . . . . 51 19 . 82 74 . 6 133 212 Regen/Repaired (Parts) 1691 | . 34 . 80 103 176 24 . . 6 322 12 15 421 196 . 12 170 120 Core Remaining (%) 81 | 100 87 . 70 99 . . . . 88 . . 78 84 95 . 100 95 2 Volleys Fired 330 | . 41 56 57 40 72 . 3 . 6 3 7 . 14 1 . 3 9 18 Largest 2 | . 2 2 2 2 2 . 2 . 2 1 2 . 2 1 . 2 1 2 Hottest 130 | . 105 105 113 112 112 . 125 . 125 28 56 . 68 33 . 68 30 130 Shots Fired 613 | . 82 112 109 80 137 . 6 . 12 3 11 . 21 1 . 6 9 24 Gun 538 | . 82 112 70 80 128 . 4 . 12 3 8 . 14 1 . 6 . 18 Cannon 46 | . . . 38 . 8 . . . . . . . . . . . . . Launcher 29 | . . . 1 . 1 . 2 . . . 3 . 7 . . . 9 6 Special . | . . . . . . . . . . . . . . . . . . . Kinetic 78 | . . . 38 . 8 . . . . 3 8 . 14 1 . 6 . . Thermal 506 | . 82 112 70 80 128 . 4 . 12 . . . . . . . . 18 Explosive 29 | . . . 1 . 1 . 2 . . . 3 . 7 . . . 9 6 Electromagnetic . | . . . . . . . . . . . . . . . . . . . Robot Hit Streak 33 | . 22 23 17 17 30 . 27 . 33 7 11 . 22 . . 26 3 23 Robot Miss Streak 2 | . 2 1 2 2 2 . . . 2 . 2 . . . . 1 1 1 Penetration Max 1 | . . . . . . . . . . . . . . . . 1 . . Secondary Targets 5 | . 1 . 1 3 . . . . . . . . . . . . . . Max Gunslinging Chain 1 | . 1 . 1 1 . . . . . . . . . . . . . . Shots Hit Robots 589 | . 65 92 76 62 109 . 5 . 10 24 28 . 48 28 . 5 12 25 Core Hits 234 | . 24 32 27 32 37 . 7 . 2 8 9 . 24 3 . 3 11 15 Critical Kills 6 | . . . . . . . . . . 2 . . 3 . . . . 1 Critical Parts Destroyed 39 | . . . . . . . . . . 8 5 . 10 12 . . 3 1 Critical Strikes 66 | . 1 . 7 2 8 . . . 1 10 7 . 13 12 . . 3 2 Burn 18 | . 1 . 6 2 8 . . . 1 . . . . . . . . . Destroy 3 | . . . . . . . . . . . . . 3 . . . . . Blast 1 | . . . 1 . . . . . . . . . . . . . . . Smash 44 | . . . . . . . . . . 10 7 . 10 12 . . 3 2 Melee Attacks 418 | . . . . . 2 . . . . 79 25 1 121 98 . . 54 38 Impact 417 | . . . . . 1 . . . . 79 25 1 121 98 . . 54 38 Slashing 1 | . . . . . 1 . . . . . . . . . . . . . Piercing . | . . . . . . . . . . . . . . . . . . . Sneak Attacks 20 | . . . . . 1 . . . . 3 5 . 4 3 . . 4 . Combat Hostiles 5 | . . . . . . . . . . 2 3 . . . . . . . Follow-up Attacks 10 | . . . . . . . . . . 4 2 . . 2 . . 2 . Damage Inflicted 17804 | . 821 1233 1542 1051 2029 . 269 . 182 1841 1320 . 2866 1801 . 155 1239 1455 Guns 7323 | . 821 1233 894 1051 1866 . 51 . 182 49 150 . 267 . . 155 . 604 Cannons 731 | . . . 646 . 85 . . . . . . . . . . . . . Explosions 2739 | . . . . . . . 218 . . 416 98 . 850 . . . 616 541 Melee 7009 | . . . . . 78 . . . . 1376 1072 . 1749 1801 . . 623 310 Ramming 2 | . . . 2 . . . . . . . . . . . . . . . Kinetic 1352 | . . . 646 . 85 . . . . 49 150 . 267 . . 155 . . Thermal 6702 | . 821 1233 894 1051 1866 . 51 . 182 . . . . . . . . 604 Explosive 2719 | . . . . . . . 218 . . 416 98 . 830 . . . 616 541 Electromagnetic 20 | . . . . . . . . . . . . . 20 . . . . . Impact 6931 | . . . . . . . . . . 1376 1072 . 1749 1801 . . 623 310 Slashing 78 | . . . . . 78 . . . . . . . . . . . . . Piercing . | . . . . . . . . . . . . . . . . . . . Highest Corruption 10 | . . . . . . . . . . 2 2 . 10 4 . . 1 7 Average Corruption 2 | . . . . . . . . . . 1 1 . 3 3 . . 1 2 Corruption Purged 5 | . . . . . . . . . . . 2 . . . . . . 3 Corruption Blocked . | . . . . . . . . . . . . . . . . . . . Effects 42 | . . . . . . . . . . 3 5 . 18 11 . . . 5 Message Errors 12 | . . . . . . . . . . 1 3 . 4 3 . . . 1 Matter Fused 8 | . . . . . . . . . . . 1 . 4 2 . . . 1 Heat Flow Errors 5 | . . . . . . . . . . 1 . . 2 1 . . . 1 Energy Discharges 7 | . . . . . . . . . . . . . 4 2 . . . 1 Data Loss (minor) 7 | . . . . . . . . . . 1 . . 3 2 . . . 1 Data Loss (major) 2 | . . . . . . . . . . . . . 1 1 . . . . Alerts 1 | . . . . . . . . . . . 1 . . . . . . . Overload Shots . | . . . . . . . . . . . . . . . . . . . Overflow Damage 3719 | . . . 2 . . . . . . 759 539 . 776 1096 . . 490 57 Projectiles 2 | . . . 2 . . . . . . . . . . . . . . . Explosions 92 | . . . . . . . . . . . 11 . 34 . . . 47 . Melee 3625 | . . . . . . . . . . 759 528 . 742 1096 . . 443 57 Knockbacks 28 | . . . . . . . . . . 3 2 . 7 14 . . 1 1 Impact 28 | . . . . . . . . . . 3 2 . 7 14 . . 1 1 Kinetic . | . . . . . . . . . . . . . . . . . . . Secondary . | . . . . . . . . . . . . . . . . . . . Self-Inflicted Damage 301 | . . . 23 . . . . . . 93 . . 99 . . . 86 . Shots 15 | . . . 1 . . . . . . 2 . . 7 . . . 5 . Rammed . | . . . . . . . . . . . . . . . . . . . Targets Rammed 1 | . . . 1 . . . . . . . . . . . . . . . Kicked 1 | . . . 1 . . . . . . . . . . . . . . . Crushed . | . . . . . . . . . . . . . . . . . . . Highest Temperature 321 | . 315 236 243 300 321 . 71 . 186 224 4 . 243 81 . 90 136 193 Average Temperature 71 | . 93 68 49 93 108 . 39 . 92 64 2 . 50 30 . 50 74 75 Received Heat Transfer 1689 | . 54 189 291 270 231 . 54 . 36 48 51 . 162 69 . . 9 225 Effects 4 | . 1 1 1 . 1 . . . . . . . . . . . . . Shutdowns 1 | . 1 . . . . . . . . . . . . . . . . . Energy Bleed 3 | . . 1 1 . 1 . . . . . . . . . . . . . Siege Activations . | . . . . . . . . . . . . . . . . . . . Robots Corrupted . | . . . . . . . . . . . . . . . . . . . Combat Hostiles . | . . . . . . . . . . . . . . . . . . . Parts Fried 54 | . . . . . . . . . . 9 7 . 17 17 . . 3 1 Impact Corruptions 98 | . . . . . . . . . . 22 10 . 24 31 . . 8 3 Robots Melted 6 | . 2 . 1 . 2 . . . 1 . . . . . . . . . Combat Hostiles 5 | . 1 . 1 . 2 . . . 1 . . . . . . . . . Parts Melted 42 | . 6 4 7 8 12 . . . 2 . . . . . . . . 3 Heat Transferred 15446 | . 2000 2901 2405 2442 4514 . 111 . 444 . . . . . . . . 629 Parts Sabotaged . | . . . . . . . . . . . . . . . . . . . Parts Stolen . | . . . . . . . . . . . . . . . . . . . Parts Stripped . | . . . . . . . . . . . . . . . . . . . Power Chain Reactions . | . . . . . . . . . . . . . . . . . . . Missiles Intercepted . | . . . . . . . . . . . . . . . . . . . Alert | -11 -10 -9 -9 -8 -7 -7 -7 -7 -6 -6 -6 -6 -5 -4 -3 -3 -2 -1 ------- Run | Scr Mat Mat Sto Mat Fac Low Low Dat Pro Fac Ext Cet Fac Fac Res DSF Res Acc Peak Influence 567 | . 160 274 380 187 182 . . . . 296 300 15 345 474 33 83 509 567 Initial 231 | . . . 24 13 23 . . . . 35 40 6 6 65 33 18 30 231 Average 121 | . 44 86 105 73 60 . . . . 85 128 4 136 170 33 53 281 363 Maximum Alert Level 2 | . . 1 1 . . . . . . 1 1 . 1 2 . . 2 2 Low Security (%) 78 | 100 100 83 78 100 100 . . . . 89 84 100 70 68 100 100 32 . Level 1 16 | . . 16 21 . . . . . . 10 15 . 29 19 . . 43 62 Level 2 4 | . . . . . . . . . . . . . . 11 . . 23 37 Level 3 . | . . . . . . . . . . . . . . . . . . . Level 4 . | . . . . . . . . . . . . . . . . . . . Level 5 . | . . . . . . . . . . . . . . . . . . . High Security . | . . . . . . . . . . . . . . . . . . . Max Security . | . . . . . . . . . . . . . . . . . . . Squads Dispatched 46 | . 4 1 3 1 6 . . . . 10 1 . 9 5 . 1 3 2 Investigation 23 | . 4 1 . . 2 . . . . 7 . . 5 4 . . . . Extermination 10 | . . . . . 3 . . . . 1 . . 3 1 . . 1 1 Reinforcement 11 | . . . 2 1 . . . . . 2 1 . 1 . . 1 2 1 Assault . | . . . . . . . . . . . . . . . . . . . Garrison 2 | . . . 1 . 1 . . . . . . . . . . . . . Intercept . | . . . . . . . . . . . . . . . . . . . Searches Triggered 2 | . . . . . . . . . . . . . . 1 . . . 1 Data Miner Redirects 7 | . . . . . . . . . . 3 . . 2 2 . . . . Construction Impeded 1 | . . . . . . . . . . 1 . . . . . . . . Haulers Reinforced . | . . . . . . . . . . . . . . . . . . . Active Scanning Responses . | . . . . . . . . . . . . . . . . . . . Cargo Convoy Interrupts 1 | . . . . . . . . . . 1 . . . . . . . . Stealth | -11 -10 -9 -9 -8 -7 -7 -7 -7 -6 -6 -6 -6 -5 -4 -3 -3 -2 -1 --------- Run | Scr Mat Mat Sto Mat Fac Low Low Dat Pro Fac Ext Cet Fac Fac Res DSF Res Acc Distress Signals 22 | . 3 2 2 1 1 . . . . 3 1 1 1 3 . . 2 2 Communications Jammed . | . . . . . . . . . . . . . . . . . . . Distress Signals . | . . . . . . . . . . . . . . . . . . . Times Spotted 317 | . 15 20 29 19 25 . 3 . 3 21 19 5 46 25 . 5 36 46 Peak Tracking Total 17 | . 4 6 5 3 3 . 3 . 2 5 6 5 10 7 . 2 17 11 Tactical Retreats 42 | . . . . . . . . . . 2 2 1 13 7 . 1 5 11 Traps | -11 -10 -9 -9 -8 -7 -7 -7 -7 -6 -6 -6 -6 -5 -4 -3 -3 -2 -1 ------- Run | Scr Mat Mat Sto Mat Fac Low Low Dat Pro Fac Ext Cet Fac Fac Res DSF Res Acc Traps Triggered 19 | . 3 . 5 . 3 . . . . . 2 . 4 . . 1 1 . Indirectly . | . . . . . . . . . . . . . . . . . . . Trap Hack Attempts . | . . . . . . . . . . . . . . . . . . . Triggered . | . . . . . . . . . . . . . . . . . . . Disarmed . | . . . . . . . . . . . . . . . . . . . Reprogrammed 12 | . . . . . . . . . . . 10 . 2 . . . . . Reused 1 | . . . . . . . . . . . . . 1 . . . . . Traps Extracted . | . . . . . . . . . . . . . . . . . . . Installed . | . . . . . . . . . . . . . . . . . . . Triggered 2 | . . . . . . . . . 1 . . . 1 . . . . . Machines | -11 -10 -9 -9 -8 -7 -7 -7 -7 -6 -6 -6 -6 -5 -4 -3 -3 -2 -1 ---------- Run | Scr Mat Mat Sto Mat Fac Low Low Dat Pro Fac Ext Cet Fac Fac Res DSF Res Acc Machines Disabled 17 | . . . 6 . . . . . . 2 4 . 3 1 . . . 1 Max in Single Turn 2 | . . . 1 . . . . . . 1 1 . 2 1 . . . 1 Garrison Access 7 | . . . 1 1 . . . . . 2 . . 1 1 . . . 1 Energy Cycler 1 | . . . . . . . . . . . . . . . . . . 1 Machines Sabotaged . | . . . . . . . . . . . . . . . . . . . Overloaded Fab Kills . | . . . . . . . . . . . . . . . . . . . Hacking | -11 -10 -9 -9 -8 -7 -7 -7 -7 -6 -6 -6 -6 -5 -4 -3 -3 -2 -1 --------- Run | Scr Mat Mat Sto Mat Fac Low Low Dat Pro Fac Ext Cet Fac Fac Res DSF Res Acc Machines Accessed 146 | . 9 7 10 9 20 . . 4 . 23 5 . 21 17 1 . 8 12 Terminals 80 | . 6 6 8 6 10 . . . . 7 5 . 12 7 1 . 5 7 Fabricators 21 | . . . . . 4 . . . . 6 . . 4 2 . . 1 4 Repair Stations 15 | . 1 . 1 1 1 . . . . 2 . . 4 3 . . 2 . Recycling Units 9 | . 2 . . . 2 . . . . 3 . . . 2 . . . . Scanalyzers 7 | . . 1 . 1 2 . . . . 3 . . . . . . . . Garrison Access 10 | . . . 1 1 1 . . . . 2 . . 1 3 . . . 1 Total Hacks 438 | . 22 26 17 26 81 . . 28 . 58 24 . 57 42 1 . 24 32 Successful 342 | . 13 15 12 19 54 . . 28 . 50 19 . 50 32 1 . 20 29 Failed 96 | . 9 11 5 7 27 . . . . 8 5 . 7 10 . . 4 3 Catastrophic 5 | . 1 . 1 1 1 . . . . . 1 . . . . . . . Database Lockouts . | . . . . . . . . . . . . . . . . . . . Manual 150 | . 19 13 9 8 23 . . . . 9 14 . 17 24 . . 7 7 Terminals 267 | . 18 24 14 20 48 . . . . 21 24 . 40 22 1 . 15 20 Fabricators 59 | . . . . . 13 . . . . 18 . . 9 6 . . 2 11 Repair Stations 37 | . 2 . 2 2 4 . . . . 7 . . 7 6 . . 7 . Recycling Units 14 | . 2 . . . 6 . . . . 4 . . . 2 . . . . Scanalyzers 19 | . . 2 . 3 8 . . . . 6 . . . . . . . . Garrison Access 14 | . . . 1 1 2 . . . . 2 . . 1 6 . . . 1 Terminal Hacks 192 | . 9 12 9 13 28 . . 28 . 11 17 . 29 11 1 . 8 16 Record 15 | . . . . . . . . 11 . 1 . . 1 . . . 1 1 Part Schematic 34 | . 4 1 1 4 4 . . 9 . . 4 . 4 2 . . . 1 Robot Schematic 5 | . . . . . . . . 5 . . . . . . . . . . Robot Analysis 15 | . . 1 1 . 6 . . . . 1 . . 3 . . . 2 1 Prototype ID Bank 12 | . 1 1 . 1 2 . . 3 . 1 1 . 1 . . . . 1 Open Door 4 | . . . 4 . . . . . . . . . . . . . . . Open DSF 3 | . . . . . 1 . . . . . . . . . 1 . 1 . Level Access Points 6 | . . . . . 1 . . . . 1 . . 1 1 . . 1 1 Branch Access Points 2 | . . . . . 1 . . . . . . . 1 . . . . . Machine Index 2 | . . . . . 1 . . . . . . . . 1 . . . . Terminal Index 8 | . 1 1 1 1 . . . . . . . . 1 1 . . 1 1 Fabricator Index 2 | . . . . . 1 . . . . 1 . . . . . . . . Repair Station Index 3 | . . . . . . . . . . 1 . . 2 . . . . . Garrison Index 2 | . . . . . . . . . . 1 . . . . . . . 1 Alert Level 11 | . 1 2 . 1 . . . . . 1 . . 3 1 . . 1 1 Unreport Threat 19 | . 2 1 2 1 2 . . . . 1 3 . 4 3 . . . . Locate Traps 7 | . . 1 . . . . . . . . 3 . . 1 . . . 2 Reprogram Traps 4 | . . . . . . . . . . . 3 . 1 . . . . . Dispatch Records 3 | . . . . 1 . . . . . 1 . . 1 . . . . . Surveillance Status 1 | . . 1 . . . . . . . . . . . . . . . . Patrol Status 3 | . . . . 2 . . . . . . 1 . . . . . . . Reinforcement Status 3 | . . . . . 2 . . . . . . . 1 . . . . . Recall Investigation 3 | . . . . . 1 . . . . . . . 2 . . . . . Hauler Manifests 2 | . . . . 1 1 . . . . . . . . . . . . . Registered Components 4 | . . 1 . 1 1 . . . . . 1 . . . . . . . Registered Prototypes 4 | . . 1 . . 1 . . . . 1 . . . . . . . 1 Zone Layout 15 | . . 1 . . 3 . . . . . 1 . 3 1 . . 1 5 Fabricator Hacks 53 | . . . . . 9 . . . . 17 . . 9 6 . . 2 10 Network Status 2 | . . . . . . . . . . . . . 1 . . . . 1 Load Schematic 27 | . . . . . 5 . . . . 9 . . 4 3 . . 1 5 Build 24 | . . . . . 4 . . . . 8 . . 4 3 . . 1 4 Repair Station Hacks 37 | . 2 . 2 2 4 . . . . 7 . . 7 6 . . 7 . Scan Component 20 | . 1 . 1 1 2 . . . . 4 . . 4 3 . . 4 . Repair 17 | . 1 . 1 1 2 . . . . 3 . . 3 3 . . 3 . Recycling Unit Hacks 4 | . . . . . 3 . . . . 1 . . . . . . . . Report Inventory 3 | . . . . . 2 . . . . 1 . . . . . . . . Retrieve Components 1 | . . . . . 1 . . . . . . . . . . . . . Scanalyzer 15 | . . 2 . 3 4 . . . . 6 . . . . . . . . Insert Component 9 | . . 1 . 2 3 . . . . 3 . . . . . . . . Analyze 6 | . . 1 . 1 1 . . . . 3 . . . . . . . . Garrison Access Hacks 7 | . . . 1 1 . . . . . 2 . . 1 1 . . . 1 Seal Access 7 | . . . 1 1 . . . . . 2 . . 1 1 . . . 1 Unauthorized Hacks 34 | . 2 1 . . 6 . . . . 6 2 . 4 8 . . 3 2 Terminals 22 | . . 1 . . 4 . . . . 3 2 . 4 3 . . 3 2 Assimilate 7 | . . 1 . . 1 . . . . 2 . . . 1 . . 1 1 Botnet 10 | . . . . . 2 . . . . 1 1 . 3 1 . . 2 . Detonate 3 | . . . . . . . . . . . 1 . 1 . . . . 1 Operators 2 | . . . . . 1 . . . . . . . . 1 . . . . Fabricators . | . . . . . . . . . . . . . . . . . . . Repair Stations . | . . . . . . . . . . . . . . . . . . . Recycling Units 7 | . 2 . . . . . . . . 3 . . . 2 . . . . Tunnel 7 | . 2 . . . . . . . . 3 . . . 2 . . . . Scanalyzers . | . . . . . . . . . . . . . . . . . . . Garrison Access 5 | . . . . . 2 . . . . . . . . 3 . . . . Broadcast 1 | . . . . . 1 . . . . . . . . . . . . . Redirect 1 | . . . . . . . . . . . . . . 1 . . . . Reprogram 1 | . . . . . . . . . . . . . . 1 . . . . Watchers 2 | . . . . . 1 . . . . . . . . 1 . . . . Data Cores Recovered 1 | . . . . . . . . . . . 1 . . . . . . . Used . | . . . . . . . . . . . . . . . . . . . Hacking Detections 104 | . 7 7 4 7 16 . . . . 15 5 . 15 12 . . 6 10 Full Trace Events 15 | . 2 1 . 1 1 . . . . 4 . . 5 1 . . . . Feedback Events 2 | . . . . . . . . . . . . . 1 1 . . . . Corruption 1 | . . . . . . . . . . . . . 1 . . . . . Hackware Fried 1 | . . . . . . . . . . . . . . 1 . . . . Feedback Blocked . | . . . . . . . . . . . . . . . . . . . Robot Schematics Acquired 5 | . . . . . . . . 5 . . . . . . . . . . Robots Built 14 | . . . . . . . . . . 14 . . . . . . . . Authchips . | . . . . . . . . . . . . . . . . . . . Time 452 | . . . . . . . . . . 452 . . . . . . . . Total Robot Build Rating 58 | . . . . . . . . . . 58 . . . . . . . . Part Schematics Acquired 37 | . 3 2 1 5 5 . . 9 . 3 4 . 2 2 . . . 1 Parts Built 17 | . . . . . 2 . . . . 3 . . 4 3 . . 1 4 Authchips . | . . . . . . . . . . . . . . . . . . . Time 1490 | . . . . . 296 . . . . 147 . . 421 323 . . 76 227 Total Part Build Rating 77 | . . . . . 4 . . . . 6 . . 24 15 . . 5 23 Parts Repaired 14 | . 1 . 1 1 1 . . . . 3 . . 2 2 . . 3 . Time 783 | . 32 . 26 51 102 . . . . 96 . . 149 129 . . 198 . Parts Recycled . | . . . . . . . . . . . . . . . . . . . Recycled Matter . | . . . . . . . . . . . . . . . . . . . Retrieved Matter . | . . . . . . . . . . . . . . . . . . . Retrieved Components 3 | . . . . . 3 . . . . . . . . . . . . . Parts Scanalyzed 6 | . . 1 . 1 1 . . . . 3 . . . . . . . . Part Schematics Acquired 6 | . . 1 . 1 1 . . . . 3 . . . . . . . . Parts Damaged 1 | . . . . . . . . . . 1 . . . . . . . . Bothacking | -11 -10 -9 -9 -8 -7 -7 -7 -7 -6 -6 -6 -6 -5 -4 -3 -3 -2 -1 ------------ Run | Scr Mat Mat Sto Mat Fac Low Low Dat Pro Fac Ext Cet Fac Fac Res DSF Res Acc Used RIF Installer . | . . . . . . . . . . . . . . . . . . . Robots Hacked . | . . . . . . . . . . . . . . . . . . . Non-combat . | . . . . . . . . . . . . . . . . . . . Combat . | . . . . . . . . . . . . . . . . . . . Robot Hacks Applied . | . . . . . . . . . . . . . . . . . . . Relay Couplers Released 4 | . . . . . . . . . . . . . . 4 . . . . Programmers 4 | . . . . . . . . . . . . . . 4 . . . . Fabnet Peak Effective % . | . . . . . . . . . . . . . . . . . . . Robots Rewired 1 | . . . . . . . . . . . . . 1 . . . . . Allies Hacked . | . . . . . . . . . . . . . . . . . . . Hacks Repelled . | . . . . . . . . . . . . . . . . . . . Allies | -11 -10 -9 -9 -8 -7 -7 -7 -7 -6 -6 -6 -6 -5 -4 -3 -3 -2 -1 -------- Run | Scr Mat Mat Sto Mat Fac Low Low Dat Pro Fac Ext Cet Fac Fac Res DSF Res Acc Total Allies 39 | . . 1 10 . 1 . . . 1 15 7 . 1 2 . . . 1 Largest Group 10 | . . 1 10 . 1 1 1 1 2 7 4 3 1 1 . . . 1 Highest-Rated Group 236 | . . 10 88 . 10 10 10 10 106 130 236 202 29 27 . . . 26 Highest-Rated Ally 159 | . . 10 16 . 10 10 10 10 96 96 159 138 29 27 . . . 26 Total Orders 7 | . . . 3 . 1 . . . . . . . . . . . 2 1 EXPLORE 7 | . . . 3 . 1 . . . . . . . . . . . 2 1 Ally Attacks 194 | . . . 60 . . . . . 2 61 56 9 6 . . . . . Total Damage 4231 | . . . 635 . . . . . 192 1645 1497 186 76 . . . . . Kills 36 | . . . 11 . . . . . 2 11 12 . . . . . . . Allies Corrupted . | . . . . . . . . . . . . . . . . . . . Allies Melted 2 | . . . . . . . . . . 2 . . . . . . . . Intel | -11 -10 -9 -9 -8 -7 -7 -7 -7 -6 -6 -6 -6 -5 -4 -3 -3 -2 -1 ------- Run | Scr Mat Mat Sto Mat Fac Low Low Dat Pro Fac Ext Cet Fac Fac Res DSF Res Acc Robot Analysis Total 15 | . . 1 1 . 6 . . . . 1 . . 3 . . . 2 1 Derelict Logs Recovered 1 | . . . . . . 1 . . . . . . . . . . . . Drone Launches 14 | . . . 5 . 2 . . . . . . . . . . . 5 2 Drone Recoveries 6 | . . . 4 . . . . . . . . . . . . . 2 . Exploration | -11 -10 -9 -9 -8 -7 -7 -7 -7 -6 -6 -6 -6 -5 -4 -3 -3 -2 -1 ------------- Run | Scr Mat Mat Sto Mat Fac Low Low Dat Pro Fac Ext Cet Fac Fac Res DSF Res Acc Turns Passed 12161 | 54 984 757 1293 1090 1746 215 227 101 165 1506 438 59 1178 852 4 59 652 781 Spaces Moved 12567 | 46 569 472 764 715 1098 168 175 83 120 1707 497 79 1989 1607 3 136 1171 1168 Core 22 | 20 1 . . . . . . . . . . . . . . . . 1 Treads . | . . . . . . . . . . . . . . . . . . . Legs 4520 | 26 568 472 764 715 1098 168 175 83 120 331 . . . . . . . . Wheels . | . . . . . . . . . . . . . . . . . . . Hover . | . . . . . . . . . . . . . . . . . . . Flight 8025 | . . . . . . . . . . 1376 497 79 1989 1607 3 136 1171 1167 Fastest Speed 5 | 50 120 120 120 116 120 122 122 122 122 25 25 25 11 5 21 5 16 17 Average Speed 58 | 95 121 120 120 118 121 122 122 122 122 42 25 25 25 20 21 15 24 21 Slowest Speed 300 | 150 300 120 120 122 122 122 122 122 122 122 25 25 92 21 21 21 26 102 Overloaded Moves 234 | . . . . . . . . . . . . . 20 13 . 74 75 52 Propulsion Burnouts . | . . . . . . . . . . . . . . . . . . . Robots Hopped 34 | . . . . . . . . . . 4 1 . 7 . . . 17 5 Cave-ins Triggered 1 | . . . . . . . . . . . . . . 1 . . . . Exploration Rate (%) 48 | 3 77 42 89 63 39 42 41 70 32 44 72 23 51 38 . 80 33 38 Regions Visited 18 Branch Regions 7 Pre-discovered Areas 9 | . 2 . 1 . . . . 1 . 3 . . . 2 . . . . Known Exits Taken 17 | 1 1 1 1 1 1 1 1 1 1 1 1 1 1 1 1 . 1 . Unknown Exits Taken . | . . . . . . . . . . . . . . . . . . . Scrap Searched 4 | . . . . . . 2 2 . . . . . . . . . . . Spaces Dug 288 | . . . 7 . 4 . . . . 42 3 1 81 51 . . 69 30 Terrain Destroyed 500 | . . . 10 . 13 . 14 . . 73 30 1 140 51 . . 96 72 Melee 247 | . . . . . 1 . . . . 42 3 1 81 51 . . 38 30 Projectile 8 | . . . 4 . 3 . . . . . . . 1 . . . . . AOE 244 | . . . 6 . 9 . 14 . . 31 27 . 57 . . . 58 42 Terrain Rammed . | . . . . . . . . . . . . . . . . . . . Walls Destroyed . | . . . . . . . . . . . . . . . . . . . Machines Disabled . | . . . . . . . . . . . . . . . . . . . Actions | -11 -10 -9 -9 -8 -7 -7 -7 -7 -6 -6 -6 -6 -5 -4 -3 -3 -2 -1 --------- Run | Scr Mat Mat Sto Mat Fac Low Low Dat Pro Fac Ext Cet Fac Fac Res DSF Res Acc Total 15984 | 53 777 550 1028 875 1368 178 181 82 126 2343 749 112 2417 1954 6 167 1418 1600 Wait 2178 | . 147 12 144 68 153 9 . . 1 497 175 28 218 232 . 6 172 316 Move 12483 | 45 568 471 763 714 1097 167 174 82 119 1698 494 78 1974 1606 2 135 1139 1157 Hop 31 | . . . . . . . . . . 4 1 . 7 . . . 14 5 Pick Up 87 | 1 8 1 10 5 10 . 2 . . 14 . . 12 7 . 3 8 6 Fast Attach 94 | 7 8 3 13 7 6 . . . . 14 3 . 8 7 . 5 5 8 Attach 63 | . 1 1 . 4 4 . . . . 9 2 . 16 5 3 1 3 14 Detach 41 | . 1 . 1 2 . . . . . 6 2 . 7 2 1 3 1 15 Swap 141 | . 3 2 19 18 12 1 2 . . 16 13 5 17 8 . 4 12 9 Drop 131 | . . 4 20 17 12 1 . . . 21 3 . 15 7 . 7 10 14 Fire 330 | . 41 56 57 40 72 . 3 . 6 3 7 . 14 1 . 3 9 18 Melee 356 | . . . . . 2 . . . . 61 21 1 110 79 . . 44 38 Ram . | . . . . . . . . . . . . . . . . . . . Kick 1 | . . . 1 . . . . . . . . . . . . . . . Crush . | . . . . . . . . . . . . . . . . . . . Escape Stasis 47 | . . . . . . . . . . . 28 . 18 . . . 1 . Rewire 1 | . . . . . . . . . . . . . 1 . . . . . Trap . | . . . . . . . . . . . . . . . . . . . Miscellaneous . | . . . . . . . . . . . . . . . . . . . Route ------- -11/Scrapyard -10/Materials (discovered 2 exits: *Mat / *Min) -9/Materials -9/Storage (discovered 2 exits: *Mat / *Rec) -8/Materials (discovered 2 exits: *Fac x2) -7/Factory (discovered 6 exits: *Fac x4 / *Low x2) -7/Lower Caves -7/Lower Caves (discovered 2 exits: *Fac / *Dat) -7/Data Miner -6/Proximity Caves -6/Factory (discovered 7 exits: *Fac x4 / *Low / *Ext x2) -6/Extension (discovered 2 exits: *Fac / *Cet) -6/Cetus -5/Factory (discovered 6 exits: *Fac x4 / *Upp x2) -4/Factory (discovered 5 exits: *Res x4 / *Upp) -3/Research -3/DSF -2/Research (discovered 3 exits: *Acc x3) -1/Access To Epsilon Eridani History --------- Turn | Location | Event 5 | -11/Scrapyard | Identified exit to Materials 5 | -11/Scrapyard | Discovered exit to Materials (range 16) 55 | -11/Scrapyard | Entered Materials 55 | -10/Materials | Evolved 1 slot: Utility x1 301 | -10/Materials | Build established: Hacker-Mutant 403 | -10/Materials | Identified exit to Mines 403 | -10/Materials | Discovered exit to Mines (range 6) 633 | -10/Materials | Identified exit to Materials 633 | -10/Materials | Discovered exit to Materials (range 9) 646 | -10/Materials | Repaired Particle Gun? 1039 | -10/Materials | Entered another Materials area 1039 | -9/Materials | Evolved 2 slots: Propulsion x2 1481 | -9/Materials | Identified exit to Storage 1481 | -9/Materials | Discovered exit to Storage (range 16) 1796 | -9/Materials | Entered Storage 2211 | -9/Storage | Used back door to open Recycling access 2211 | -9/Storage | Identified exit to Recycling 2211 | -9/Storage | Discovered exit to Recycling (range 5) 2336 | -9/Storage | Repaired Aluminum Leg 2674 | -9/Storage | Found Prototype Protection 2674 | -9/Storage | Identified Lgt. Regenerative Plating 2705 | -9/Storage | Assisted by bots powering up and referring to "LRC-V3" 2717 | -9/Storage | Learned location of Armory (-3) 2891 | -9/Storage | Garrison activated, responded to threat 3080 | -9/Storage | Identified exit to Materials 3080 | -9/Storage | Discovered exit to Materials (range 8) 3089 | -9/Storage | Entered Materials 3089 | -8/Materials | Evolved 2 slots: Propulsion x1, Utility x1 3429 | -8/Materials | Repaired Imp. Medium Laser 3879 | -8/Materials | Identified exit to Factory 3879 | -8/Materials | Discovered exit to Factory (range 16) 4153 | -8/Materials | Discovered exit to Factory (range 4) 4179 | -8/Materials | Entered Factory 4179 | -7/Factory | Evolved 2 slots: Power x1, Propulsion x1 4492 | -7/Factory | Identified exit to Factory 4492 | -7/Factory | Discovered exit to Factory (range 39) 4531 | -7/Factory | Garrison activated, responded to threat 4700 | -7/Factory | Identified exit to Lower Caves 4897 | -7/Factory | Fabricated Imp. Flight Unit (x1) 5336 | -7/Factory | Fabricated Imp. Flight Unit (x1) 5483 | -7/Factory | Repaired Cld. Ion Engine 5925 | -7/Factory | Entered Lower Caves 5925 | -7/Lower Caves | Accompanied by 1 ally 5981 | -7/Lower Caves | Learned Factory stockpile data 6123 | -7/Lower Caves | Identified exit to Lower Caves 6123 | -7/Lower Caves | Discovered exit to Lower Caves (range 3) 6140 | -7/Lower Caves | Entered another Lower Caves area 6140 | -7/Lower Caves | Accompanied by 1 ally 6214 | -7/Lower Caves | Discovered exit to Factory (range 5) 6256 | -7/Lower Caves | Encountered a Warlord checkpoint 6339 | -7/Lower Caves | Identified exit to Data Miner 6339 | -7/Lower Caves | Discovered exit to Data Miner (range 12) 6367 | -7/Lower Caves | Entered Data Miner 6367 | -7/Data Miner | Accompanied by 1 ally 6367 | -7/Data Miner | Identified exit to Proximity Caves 6367 | -7/Data Miner | Discovered exit to Proximity Caves (range 6) 6391 | -7/Data Miner | Met Data Miner 6419 | -7/Data Miner | Learned location of Section 7 (-2) 6419 | -7/Data Miner | Acquired the access code to Warlord's prototype stash 6437 | -7/Data Miner | Received God Mode back door access code from Data Miner 6468 | -7/Data Miner | Entered Proximity Caves 6468 | -6/Proximity Caves | Accompanied by 1 ally 6544 | -6/Proximity Caves | Attracted the attention of an 0b10 checkpoint 6553 | -6/Proximity Caves | Escorted by Enhanced Grunt 6613 | -6/Proximity Caves | Discovered exit to Factory (range 12) 6633 | -6/Proximity Caves | Entered Factory 6633 | -6/Factory | Accompanied by 2 allies 6633 | -6/Factory | Evolved 2 slots: Utility x2 6771 | -6/Factory | Identified exit to Factory 6871 | -6/Factory | Found Prototype Launcher 6890 | -6/Factory | Incoming investigation squad redirected 6943 | -6/Factory | Identified Scatter Rocket Array 7069 | -6/Factory | Fabricated Imp. Flight Unit? 7127 | -6/Factory | Fabricated Imp. Flight Unit (x1) 7185 | -6/Factory | Fabricated Imp. Flight Unit? 7277 | -6/Factory | Repaired Med. Storage Unit 7337 | -6/Factory | Repaired Imp. Flight Unit 7340 | -6/Factory | Identified exit to Extension 7340 | -6/Factory | Discovered exit to Extension (range 6) 7498 | -6/Factory | Build established: Hacker-Sprinter 7505 | -6/Factory | Incoming investigation squad redirected 7511 | -6/Factory | Repaired Imp. Propulsion Shielding 7526 | -6/Factory | Fabricated E-15 Imp? 7656 | -6/Factory | Fabricated B-48 Gladiator? 7698 | -6/Factory | Incoming investigation squad redirected 7757 | -6/Factory | Fabricated B-48 Gladiator? 7828 | -6/Factory | Cargo convoy interrupted 7860 | -6/Factory | Identified exit to Lower Caves 7860 | -6/Factory | Discovered exit to Lower Caves (range 14) 7890 | -6/Factory | Fabricated B-48 Gladiator? 7899 | -6/Factory | Fabricated B-48 Gladiator? 8015 | -6/Factory | Discovered exit to Extension (range 5) 8139 | -6/Factory | Entered Extension 8139 | -6/Extension | Accompanied by 1 ally 8142 | -6/Extension | Disrupted transfer network 8156 | -6/Extension | Rescued A7 8192 | -6/Extension | Rescued a captive Derelict 8192 | -6/Extension | Rescued a captive Derelict 8201 | -6/Extension | Rescued a captive Derelict 8201 | -6/Extension | Rescued a captive Derelict 8277 | -6/Extension | Spotted B-75 Beast 8289 | -6/Extension | Spotted B-75 Beast 8327 | -6/Extension | Rescued a captive Derelict 8328 | -6/Extension | Rescued a captive Derelict 8495 | -6/Extension | Rescued a captive Derelict 8506 | -6/Extension | Rescued a captive Derelict 8562 | -6/Extension | Discovered exit to Factory (range 10) 8562 | -6/Extension | Identified exit to Cetus 8562 | -6/Extension | Discovered exit to Cetus (range 6) 8577 | -6/Extension | Entered Cetus 8577 | -6/Cetus | Accompanied by 3 allies (A7) 8582 | -6/Cetus | Acquired a Cetus Manufacturing Module code from A7 8589 | -6/Cetus | Spotted Cetus Guard 8590 | -6/Cetus | Spotted Cetus Guard 8597 | -6/Cetus | Spotted Cetus Guard 8597 | -6/Cetus | Spotted Cetus Guard 8602 | -6/Cetus | Extracted ID and sensor layout for unrecognized location from A7's data core 8609 | -6/Cetus | Discovered exit to Factory (range 16) 8636 | -6/Cetus | Entered Factory 8636 | -5/Factory | Evolved 2 slots: Utility x2 8678 | -5/Factory | Repaired Lgt. Fission Core 8949 | -5/Factory | Identified exit to Factory 8949 | -5/Factory | Identified exit to Upper Caves 8973 | -5/Factory | Incoming investigation squad redirected 9060 | -5/Factory | Incoming investigation squad redirected 9242 | -5/Factory | Fabricated Cld. Nuclear Pulse Thruster (x1) 9333 | -5/Factory | Fabricated Cld. Nuclear Pulse Thruster? 9505 | -5/Factory | Repaired Cld. Nuclear Pulse Thruster? 9623 | -5/Factory | Fabricated Cld. Nuclear Pulse Thruster (x1) 9756 | -5/Factory | Repaired Shock Maul 9757 | -5/Factory | Fabricated Cld. Nuclear Pulse Thruster? 9796 | -5/Factory | System corruption reached 10% 9814 | -5/Factory | Entered another Factory area 9814 | -4/Factory | Evolved 2 slots: Propulsion x1, Utility x1 9847 | -4/Factory | Adv. Hacking Suite fried by hacking feedback 9861 | -4/Factory | Incoming investigation squad redirected 9867 | -4/Factory | Incoming investigation squad redirected 9890 | -4/Factory | Repaired Lgt. Fission Core 9996 | -4/Factory | Fabricated Adv. Sensor Array (x1) 10019 | -4/Factory | Build established: Wizard-Sprinter 10046 | -4/Factory | Identified exit to Research 10046 | -4/Factory | Discovered exit to Research (range 14) 10146 | -4/Factory | Fabricated Cld. Cesium-ion Thruster? 10151 | -4/Factory | Fabricated Exp. Propulsion Shielding (x1) 10197 | -4/Factory | Crushed by falling debris 10441 | -4/Factory | Identified exit to Upper Caves 10441 | -4/Factory | Discovered exit to Upper Caves (range 5) 10512 | -4/Factory | Repaired Cld. Field Propulsion Drive 10564 | -4/Factory | Search patrols dispatched 10645 | -4/Factory | Spotted B-86 Titan 10666 | -4/Factory | Entered Research 10666 | -3/Research | Evolved 2 slots: Utility x2 10667 | -3/Research | Identified exit to DSF 10670 | -3/Research | Entered DSF 10697 | -3/DSF | Additional patrols routed to DSF 10699 | -3/DSF | Identified exit to Research 10699 | -3/DSF | Discovered exit to Research (range 14) 10703 | -3/DSF | Found Hvy. Insulated Plating 10729 | -3/DSF | Entered Research 10729 | -2/Research | Evolved 2 slots: Utility x2 10763 | -2/Research | Repaired Cld. Nuclear Pulse Thruster 10921 | -2/Research | Fabricated Exp. Propulsion Shielding? 11014 | -2/Research | Spotted B-90 Cyclops 11130 | -2/Research | Repaired Cld. Nuclear Pulse Thruster 11214 | -2/Research | Repaired Exp. Utility Shielding? 11313 | -2/Research | Spotted B-90 Cyclops 11329 | -2/Research | Identified exit to Access 11381 | -2/Research | Entered Access 11381 | -1/Access | Evolved 2 slots: Utility x2 11448 | -1/Access | Fabricated Exp. Cesium-ion Thruster (x1) 11572 | -1/Access | Fabricated Cloaking Device (x1) 11595 | -1/Access | Fabricated Exp. Cesium-ion Thruster (x1) 11615 | -1/Access | Energy Cycler disabled 11646 | -1/Access | Identified exit to Surface 12055 | -1/Access | Fabricated Lgt. Neutrino Core? 12073 | -1/Access | Spotted B-99 Colossus 12131 | -1/Access | Search patrols dispatched 12136 | -1/Access | Core integrity fell below 50% 12157 | -1/Access | Core integrity fell below 20% 12162 | *** | Escaped! Last Messages --------------- 12145_ Penetrated by Slug. 12147_ Slug penetrates Sealed Heavy Doors. 12147_ M-36 Artificer repairs C-57 Dissector. 12150_ P-80 Master resets C-57 Dissector, system corruption cleaned. 12150_ Adv. Coolant Injector destroyed. 12150_ Penetrated by Slug. 12150_ Slug penetrates C-57 Dissector. 12150_ C-57 Dissector destroyed. 12152_ Penetrated by Slug. 12154_ M-36 Artificer repairs H-88 Terminator. 12154_ P-80 Master resets H-88 Terminator, system corruption cleaned. 12156_ Penetrated by Slug. 12157_ F4%ZFP#|R&Z3E&6 NPVH 12159_ Penetrated by Slug. 12159_ Slug penetrates P-80 Master. 12159_ Penetrated by Slug. [Achievement: Collector] [Achievement: By A Hair] Map ----- +----------------------------------------------------+ | #???????# ???????????????????????????????????? | | #???????? ???????????????????????????????????? | | #???????? ???????????????????????????????????? | | #????????= ???????????????????????????????????? | | #????????# ???????????????????????????????????? | | #????????# #??????????????????????????????????? | | #????????# #??????????????????????????????????? | | #????????# #??????????????????????????????????? | | #????????# #??????????????????????????????????? | | #????????# #??????????????????????????????????? | | #????????# ######################?????????????? | | #????????+ ????????????? | | ###????????# ????????????? | | ???????????# ####### ""#?????????????????? | | ???????????# #?????# ""#?????????????????? | | ???????????# #?????# ""#?????????????????? | | ????#+#????# #?????# T#?????????????????? | | ????# #????# #?????# p ""#?????????????????? | | ????# #????# #?????# ""#?????????????????? | | ????# #???## %###??## mh ""##????????????????? | | ##### ##### %#??# #????????????????? | | # ##??## ##????????????????? | | % H #????# p!/ #?????????????????? | | # #????# hc/% #?????????????????? | | % ######????# ![[= #?????????????????? | | ##????????# !%@= #?????????????????? | | #????????# !%*" #?????????????????? | | #????????# = #?????????????????? | | ##????????# #?????????????????? | | #????????# #?????????????????? | | ## ###??##?#""""""""""#?????????????????? | | """ #??????????????????????????????? | | Y"" ! #??????????????????????????????? | | ""G"" #??????????""#?????????????????? | | [ " " #????????? #?????????????????? | | # " " #????????? #?????????????????? | | # %! #???????? #?????????????????? | | # " #???????? #?????????????????? | | # #??????? #?????????????????? | | # #??????? #?????????????????? | | # * #?????? ???????????????????? | | ###### ???????? #????????????????????? | | #?# ????????? #????????????????????? | | #########+########### #????????????????????? | | +????????????????????? | | #????????????????????? | | #????????????????????? | | #????????????????????? | | ####### ####+#+########????????????????????? | | #?????# # #?????????????????????? | +----------------------------------------------------+ Best States ------------- Heat Dissipation 65 Coolant Potential 100 Energy Generation 43 Energy Capacity 460 Matter Stores 300 Matter Capacity 300 Sight Range 22 Robot Scan Range 16 Terrain Scan Density 10 ECM Strength 1 Jamming Range 14 Cloak Strength 2 Base Temperature (-) 200 Armor Coverage 525 Resistance: KI 35 Resistance: TH 35 Resistance: EX 35 Resistance: EM 35 Resistance: I 35 Resistance: S 35 Resistance: P 35 Propulsion Shielding 90 Utility Shielding 90 Evasion (%) 79 Offensive Hacking 76 Defensive Hacking 14 Item Schematics ----------------- Flight Unit | -10/Materials | Hacked Propulsion Shielding | -10/Materials | Hacked Sensor Array | -10/Materials | Hacked Lgt. Armor Plating | -9/Materials | Scanalyzed Lrg. Storage Unit | -9/Materials | Hacked Imp. Sensor Array | -9/Storage | Hacked Imp. Flight Unit | -8/Materials | Hacked Cld. Ion Engine | -8/Materials | Hacked Imp. Propulsion Shielding | -8/Materials | Scanalyzed Hacking Suite | -8/Materials | Hacked System Shield | -8/Materials | Hacked Med. Storage Unit | -7/Factory | Hacked Imp. Medium Laser | -7/Factory | Hacked System Guard | -7/Factory | Hacked Mni. Grenade Launcher | -7/Factory | Scanalyzed Adv. System Shield | -7/Factory | Hacked Combat Drone Bay | -7/Data Miner | Free Lgt. Regenerative Plating | -7/Data Miner | Free Cld. Cesium-ion Thruster | -7/Data Miner | Free Gravity Neutralizer | -7/Data Miner | Free Cld. Plasma Cannon | -7/Data Miner | Free Field Propulsion Drive | -7/Data Miner | Free Adv. Trap Extractor | -7/Data Miner | Free Wave Gun | -7/Data Miner | Free Imp. Kinecellerator | -7/Data Miner | Free Cloaking Device | -6/Factory | Scanalyzed Imp. Cryofiber Web | -6/Factory | Scanalyzed Barrage Gun | -6/Factory | Scanalyzed Exp. Propulsion Shielding | -6/Extension | Hacked Lgt. Fission Core | -6/Extension | Hacked Adv. Sensor Array | -6/Extension | Hacked Adv. Signal Interpreter | -6/Extension | Hacked Cld. Nuclear Pulse Thruster | -5/Factory | Hacked Nuclear Pulse Array | -5/Factory | Hacked Exp. Hacking Suite | -4/Factory | Hacked Exp. Cesium-ion Thruster | -4/Factory | Hacked Lgt. Neutrino Core | -1/Access | Hacked Robot Schematics ------------------ G-47 Trooper | -7/Data Miner | Free P-60 Hacker | -7/Data Miner | Free B-48 Gladiator | -7/Data Miner | Free A-15 Conveyor | -7/Data Miner | Free E-15 Imp | -7/Data Miner | Free Fabricated ------------ Imp. Flight Unit | x1 | -7/Factory Imp. Flight Unit | x1 | -7/Factory Imp. Flight Unit | x1 | -6/Factory Imp. Flight Unit | x1 | -6/Factory Imp. Flight Unit | x1 | -6/Factory E-15 Imp | x2 | -6/Factory B-48 Gladiator | x3 | -6/Factory B-48 Gladiator | x3 | -6/Factory B-48 Gladiator | x3 | -6/Factory B-48 Gladiator | x3 | -6/Factory Cld. Nuclear Pulse Thruster | x1 | -5/Factory Cld. Nuclear Pulse Thruster | x1 | -5/Factory Cld. Nuclear Pulse Thruster | x1 | -5/Factory Cld. Nuclear Pulse Thruster | x1 | -5/Factory Adv. Sensor Array | x1 | -4/Factory Cld. Cesium-ion Thruster | x1 | -4/Factory Exp. Propulsion Shielding | x1 | -4/Factory Exp. Propulsion Shielding | x1 | -2/Research Exp. Cesium-ion Thruster | x1 | -1/Access Cloaking Device | x1 | -1/Access Exp. Cesium-ion Thruster | x1 | -1/Access Lgt. Neutrino Core | x1 | -1/Access Alien Tech Used ----------------- None Achievements -------------- Batter Up By A Hair Collector Dodgeball, But With Guns Short-term Sacrifices Speed Demon Supersonic War Machine Whoosh! Challenges ------------ None Game ------ Seed AlertVortexLauncher Manual? 0 Play Time 06:57:22 Cumulative 273.7 hours Start 2022.11.03 @ 21:50:38 End 2022.11.12 @ 19:32:02 Sessions 30 Manual Loads 0 Difficulty Explorer Special Mode None Game No. 74 Rogue 0 Adventurer 59 Explorer 15 Win Type 0 Total 6 Types 5/0/1/0/0/0/0/0/0 Lore% 67 Gallery% 75 Achievement% 62 Wizard Run 0 Options --------- ASCII 0 Keyboard 0 Movement Mouse Keybinds 0 Fullscreen 2 Font 20/Terminus Map View 66x50 Tactical HUD 1 Map Filters NONE Filters NONE Steam 1 RUN: 64fae2fb-f3d4-40ff-9bad-81c793b0649e